fUSD/lending_fUSD_20241017
["ID","MTS","AMOUNT","RATE_DAILY","PERIOD"]
[340376742,1729137044960,-151.0,0.00012329,2]
[340376743,1729137044969,-151.0,0.00012329,2]
[340376744,1729137044979,-495.197901,0.00012329,2]
[340376745,1729137044988,-495.197901,0.00012329,2]
[340376746,1729137044998,-495.197901,0.00012329,2]
[340376747,1729137045007,-495.197901,0.00012329,2]
[340376748,1729137045017,-495.197901,0.00012329,2]
[340376749,1729137045032,-495.197901,0.00012329,2]
[340376750,1729137045041,-495.197901,0.00012329,2]
[340376751,1729137045051,-495.197904,0.00012329,2]
[340376752,1729137045061,-151.0,0.00012329,2]
[340376753,1729137045071,-151.0,0.00012329,2]
[340376754,1729137045081,-151.0,0.00012329,2]
[340376755,1729137045091,-151.0,0.00012329,2]
[340376756,1729137045103,-253.325223,0.00012329,2]
[340376757,1729137045116,-253.325223,0.00012329,2]
[340376758,1729137045126,-209.234371,0.00012329,2]
[340376759,1729137045136,-209.23438,0.00012329,2]
[340376760,1729137045147,-924.0,0.00012387,2]
[340376761,1729137045158,-158.02245,0.000124,2]
[340376762,1729137045169,-166.75,0.0001242,2]
[340376763,1729137045179,-167.0,0.00012445,2]
[340376764,1729137045189,-167.0,0.00012445,2]
[340376765,1729137045201,-167.0,0.00012445,2]
[340376766,1729137045210,-600.0,0.0001246,2]
[340376767,1729137045220,-600.0,0.0001246,2]
[340376768,1729137045229,-600.0,0.0001246,2]
[340376769,1729137045240,-600.0,0.0001246,2]
[340376770,1729137045249,-600.0,0.0001246,2]
[340376771,1729137045260,-600.0,0.0001246,2]
[340376772,1729137045269,-600.0,0.0001246,2]
[340376773,1729137045279,-600.0,0.0001246,2]
[340376774,1729137045288,-600.0,0.0001246,2]
[340376775,1729137045297,-600.0,0.0001246,2]
[340376776,1729137045307,-600.0,0.0001246,2]
[340376777,1729137045317,-600.0,0.0001246,2]
[340376778,1729137045327,-600.0,0.0001246,2]
[340376779,1729137045337,-600.0,0.0001246,2]
[340376780,1729137045347,-600.0,0.0001246,2]
[340376781,1729137045357,-600.0,0.0001246,2]
[340376782,1729137045368,-600.0,0.0001246,2]
[340376783,1729137045377,-600.0,0.0001246,2]
[340376784,1729137045387,-600.0,0.0001246,2]
[340376785,1729137045397,-600.0,0.0001246,2]
[340376786,1729137045407,-700.0,0.0001247,2]
[340376787,1729137045416,-700.0,0.0001247,2]
[340376788,1729137045426,-500.64529445,0.0001247,2]
[340376789,1729137045436,-1101.55565366,0.0001247,2]
[340376790,1729137045446,-291.58787849,0.000125,2]
[340376791,1729137045456,-444.06,0.00012632,2]
[340376792,1729137045468,-15408.92586742,0.00012666,2]
[340376793,1729137045478,-179.99,0.00012893,2]
[340376794,1729137045490,-836.21744116,0.00012899,2]
[340376795,1729137045499,-22317.56326147,0.000129,2]
[340376796,1729137045510,-368.39,0.00012959,2]
[340376797,1729137045521,-4196.61019707,0.00013,2]
[340376798,1729137045531,-1840.17994629,0.00013,4]
[340376799,1729137045541,-924.0,0.00013007,2]
[340376800,1729137045551,-5067.40089372,0.0001305,2]
[340376801,1729137045561,-444.06,0.00013063,2]
[340376802,1729137045570,-3000.0,0.0001315,2]
[340376803,1729137045579,-166.75,0.00013151,2]
[340376804,1729137045589,-158.88,0.00013161,2]
[340376805,1729137045599,-150.0,0.00013425,2]
[340376806,1729137045609,-167.0,0.00013472,2]
[340376807,1729137045618,-444.06,0.00013495,2]
[340376808,1729137045627,-150.0,0.00013507,2]
[340376809,1729137045636,-151.44,0.00013507,2]
[340376810,1729137045646,-5349.2325738,0.00013637,2]
[340376811,1729137045655,-924.0,0.00013657,2]
[340376812,1729137045664,-1000.0,0.00013675,2]
[340376813,1729137045674,-168.89,0.00013696,2]
[340376814,1729137045684,-500.0,0.00013699,2]
[340376815,1729137045695,-500.0,0.00013699,2]
[340376816,1729137045704,-530.27813444,0.00013699,2]
[340376817,1729137045715,-6414.01,0.00013699,2]
[340376818,1729137045724,-500.0,0.00013699,2]
[340376819,1729137045734,-200.0,0.00013699,2]
[340376820,1729137045744,-295.06,0.00013756,2]
[340376821,1729137045753,-444.06,0.00013926,2]
[340376822,1729137045763,-500.0,0.00013972,2]
[340376823,1729137045773,-1200.0,0.00013972,2]
[340376824,1729137045783,-150.0,0.00013981,2]
[340376825,1729137045792,-268.32786791,0.00014,2]
[340376826,1729137045802,-650.0,0.00014,2]
[340376827,1729137045812,-802.29,0.00014,2]
[340376828,1729137045822,-1000.0,0.000141,2]
[340376829,1729137045832,-227.0,0.000141,2]
[340376830,1729137045842,-360.0,0.000141,2]
[340376831,1729137045851,-924.0,0.0001434,2]
[340376832,1729137045860,-444.06,0.00014358,2]
[340376833,1729137045870,-17738.7424149,0.0001438,2]
[340376834,1729137045880,-1421.10023449,0.0001439,2]
[340376836,1729137046249,-1987.4123422,0.0001439,2]
[340376837,1729137046265,-784.61211802,0.0001439,2]
[340376838,1729137046281,-4477.87042098,0.0001439,2]
[340376840,1729137046865,-180.0,0.00012776,2]
[340376841,1729137046875,-1092.56556187,0.0001439,2]
[340376842,1729137046885,-158.88,0.00014477,2]
[340376843,1729137046897,-167.0,0.00014499,2]
[340376844,1729137046907,-167.0,0.00014499,2]
[340376845,1729137046916,-7816.1283988,0.000145,2]
[340376846,1729137046926,-2430.0,0.000145,2]
[340376847,1729137046936,-3000.0,0.0001452,2]
[340376848,1729137046945,-444.06,0.0001479,2]
[340376849,1729137046954,-7524.97044185,0.00014869,2]
[340376850,1729137046967,-2883.30956889,0.00014869,2]
[340376851,1729137046984,-276.50608329,0.00014869,2]
[340376852,1729137048367,-500.0,0.00014,2]
[340376853,1729137048377,-276.83217008,0.00014869,2]
[340376854,1729137121278,182.7,0.00010959,2]
[340376855,1729137154661,-150.0,0.00015,4]
[340376856,1729137154682,-400.0,0.00015,4]
[340376857,1729137196156,266.25,0.00011,2]
[340376861,1729137505757,239.62,0.00011,2]
[340376862,1729137520504,1079.1135752,0.0001078,2]
[340376864,1729137647812,167.2,0.00010959,2]
[340376865,1729137661883,1057.60394354,0.0001074,2]
[340376868,1729137814746,215.66,0.00011,2]
[340376869,1729137933159,550.0,0.0001,2]
[340376875,1729138123541,194.1,0.00011,2]
[340376898,1729138232119,-2200.0,0.0001178,2]
[340376900,1729138232128,-600.0,0.00012,2]
[340376902,1729138232137,-150.0,0.000124,2]
[340376904,1729138232146,-924.0,0.00012701,2]
[340376906,1729138232156,-282.35,0.0001289,2]
[340376908,1729138232165,-360.0,0.000131,2]
[340376910,1729138232175,-2200.0,0.0001315,2]
[340376912,1729138232184,-924.0,0.00013336,2]
[340376914,1729138232194,-1499.99,0.00013941,2]
[340376916,1729138232203,-3320.65,0.00013958,2]
[340376918,1729138232212,-500.0,0.00013972,2]
[340376920,1729138232221,-1100.0,0.00013972,2]
[340376921,1729138232230,-179.99,0.00013972,2]
[340376922,1729138232239,-1500.0,0.00013985,2]
[340376923,1729138232248,-650.0,0.00014,2]
[340376924,1729138232257,-809.868003,0.00014,2]
[340376925,1729138232266,-150.99,0.00014,2]
[340376926,1729138232276,-1649.4,0.00014,2]
[340376927,1729138232285,-999.99,0.00014,2]
[340376928,1729138232294,-2422.48,0.00014,2]
[340376929,1729138232303,-250.0,0.00014004,2]
[340376930,1729138232311,-174.5,0.00014067,2]
[340376931,1729138232321,-93.20812691,0.00014125,2]
[340376936,1729138238170,-818.775,0.00014125,2]
[340376937,1729138238323,-987.45743925,0.00014125,2]
[340376938,1729138238377,-17582.55943384,0.00014125,2]
[340376939,1729138238387,-805.28595256,0.000144,2]
[340376940,1729138238534,-194.71404744,0.000144,2]
[340376941,1729138238543,-227.0,0.000144,2]
[340376942,1729138238552,-2200.0,0.0001452,2]
[340376943,1729138238561,-539.26,0.00014526,2]
[340376944,1729138238570,-679.28,0.00014532,2]
[340376945,1729138238579,-150.0,0.00014603,2]
[340376946,1729138238589,-150.0,0.00014713,2]
[340376947,1729138238598,-250.0,0.0001473,2]
[340376948,1729138238608,-2751.0,0.00014789,2]
[340376949,1729138238617,-150.0,0.00014798,2]
[340376950,1729138238626,-169.84,0.00014813,2]
[340376951,1729138238635,-150.0,0.00014817,2]
[340376952,1729138238644,-150.0,0.00014821,2]
[340376953,1729138238653,-150.0,0.00014852,2]
[340376954,1729138238663,-150.0,0.00014859,2]
[340376955,1729138238672,-1870.41537798,0.00014869,2]
[340376969,1729138240262,-275.5344339,0.00014869,2]
[340376974,1729138243361,-279.66056725,0.00014869,2]
[340376976,1729138246062,-360.08234564,0.00014869,2]
[340376977,1729138246073,-928.66277367,0.00014869,2]
[340376978,1729138246119,-797.50039743,0.00014869,2]
[340376979,1729138246489,-1529.47956354,0.00014869,2]
[340376980,1729138246506,-392.18531531,0.00014869,2]
[340376981,1729138246527,-832.13,0.00014869,2]
[340377001,1729138434238,189.69,0.00011,2]
[340377002,1729138745921,170.72,0.00011,2]
[340377004,1729138926886,161.26,0.00010959,2]
[340377005,1729139055727,153.64,0.00011,2]
[340377007,1729139108440,8276403.74735198,0.00011,2]
[340377009,1729139280716,413007.36470038,0.00011,2]
[340377010,1729139366345,150.0,0.00011,2]
[340377033,1729139432292,-150.499,0.00011755,2]
[340377035,1729139432300,-178.341825,0.00011797,2]
[340377036,1729139432310,-268.23,0.00011858,2]
[340377038,1729139432319,-14434.4825373,0.000123,2]
[340377041,1729139432330,-6576.90399969,0.000123,2]
[340377044,1729139432352,-7141.25819299,0.000123,2]
[340377045,1729139432363,-770.28642853,0.000123,2]
[340377050,1729139432412,-585.38872825,0.000123,2]
[340377052,1729139432423,-2636.2,0.000123,2]
[340377054,1729139432434,-4996.966294,0.000123,2]
[340377058,1729139438535,-357.95902549,0.000123,2]
[340377059,1729139440468,-10206.26283386,0.000123,2]
[340377060,1729139440522,-263.7740842,0.000123,2]
[340377061,1729139440534,-616.775001,0.000123,2]
[340377071,1729139443432,-754.32475265,0.000123,2]
[340377072,1729139443444,-293.75433028,0.000123,2]
[340377075,1729139443650,-643.71140223,0.000123,2]
[340377076,1729139443662,-7040.65125959,0.000123,2]
[340377080,1729139446236,-370.12560752,0.000123,2]
[340377081,1729139446248,-1189.02918722,0.000123,2]
[340377082,1729139446259,-2645.11784822,0.000123,2]
[340377083,1729139446269,-13505.9,0.000123,2]
[340377086,1729139446997,-1269.51983804,0.000123,2]
[340377087,1729139447009,-510.8928392,0.000123,2]
[340377088,1729139447031,-17614.77864084,0.000123,2]
[340377089,1729139447043,-4417.52516995,0.000123,2]
[340377090,1729139447057,-1546.58900404,0.000123,2]
[340377091,1729139447069,-5272.82299491,0.000123,2]
[340377092,1729139447078,-178.341825,0.00012387,2]
[340377093,1729139447089,-300.0,0.00012499,2]
[340377094,1729139447098,-300.0,0.00012499,2]
[340377095,1729139447107,-11518.0,0.000127,3]
[340377096,1729139447116,-216.06895971,0.00012776,2]
[340377097,1729139447125,-1700.0,0.00012876,2]
[340377098,1729139447135,-170.91,0.00012902,2]
[340377099,1729139447144,-11518.0,0.000131,5]
[340377100,1729139447153,-158.08,0.00013286,2]
[340377101,1729139447164,-150.99,0.00013286,2]
[340377102,1729139447181,-174.5,0.00013383,2]
[340377103,1729139447190,-224.52184298,0.00013473,2]
[340377104,1729139447200,-300.0,0.00013714,2]
[340377105,1729139447209,-250.0,0.00013725,2]
[340377106,1729139447219,-1000.0,0.00013725,2]
[340377107,1729139447229,-222.0,0.00013732,2]
[340377108,1729139447443,-2751.0,0.00013759,2]
[340377109,1729139447453,-200.0,0.00013764,2]
[340377110,1729139447463,-180.13,0.00013834,2]
[340377111,1729139447474,-170.3,0.00013922,2]
[340377112,1729139447482,-268.23,0.00014121,2]
[340377113,1729139447491,-180.0,0.00014207,2]
[340377114,1729139447500,-1700.0,0.00014246,2]
[340377115,1729139447511,-2050.7108,0.000144,2]
[340377116,1729139447523,-823.86,0.00014441,2]
[340377117,1729139447533,-1000.0,0.000145,2]
[340377118,1729139447544,-227.0,0.000145,2]
[340377119,1729139447554,-360.0,0.000145,2]
[340377120,1729139447563,-500.0,0.00014673,2]
[340377121,1729139447571,-174.5,0.00014721,2]
[340377122,1729139447580,-150.0,0.00014753,2]
[340377123,1729139447589,-150.0,0.00014763,2]
[340377124,1729139447598,-150.0,0.00014831,2]
[340377125,1729139447608,-2747.6432,0.00014849,2]
[340377126,1729139447618,-2246.51260881,0.00014868,2]
[340377127,1729139447630,-2711.47449119,0.00014868,2]
[340377128,1729139447640,-5489.21600347,0.00014869,2]
[340377129,1729139447659,-1417.56443875,0.00014869,2]
[340377130,1729139447670,-2735.70533876,0.00014869,2]
[340377131,1729139447682,-581.02513369,0.00014869,2]
[340377132,1729139447692,-1224.9376738,0.00014869,2]
[340377133,1729139447710,-267.49644635,0.00014869,2]
[340377134,1729139447720,-879.79003076,0.00014869,2]
[340377135,1729139447731,-3975.80907621,0.00014869,2]
[340377136,1729139447742,-2026.77504163,0.00014869,2]
[340377137,1729139447754,-2854.69566369,0.00014869,2]
[340377138,1729139447767,-10401.00682633,0.00014869,2]
[340377139,1729139675376,150.0,0.00011,2]
[340377140,1729139757454,550.0,0.0001,2]
[340377142,1729139984369,150.0,0.00011,2]
[340377143,1729140048320,173.56,0.00010959,2]
[340377145,1729140298667,150.0,0.00011,2]
[340377149,1729140561665,-6600.0,0.00011585,2]
[340377157,1729140607065,150.0,0.00011,2]
[340377158,1729140631440,-2309.75098333,0.00011585,2]
[340377159,1729140631455,-9392.69226993,0.00011585,2]
[340377160,1729140631496,-561.75930824,0.00011585,2]
[340377161,1729140631510,-9428.00907901,0.00011585,2]
[340377162,1729140631553,-26467.02791782,0.00011585,2]
[340377163,1729140631565,-19117.5265874,0.00011585,2]
[340377164,1729140631575,-600.0,0.00012,2]
[340377165,1729140631585,-241.4,0.00013775,2]
[340377166,1729140631599,-1400.0,0.00013972,2]
[340377167,1729140631610,-650.0,0.00014,2]
[340377168,1729140631621,-250.0,0.00014411,2]
[340377169,1729140631630,-150.0,0.0001472,2]
[340377170,1729140631640,-150.0,0.00014782,2]
[340377171,1729140631650,-150.0,0.00014841,2]
[340377172,1729140631659,-60569.33716046,0.00014869,2]
[340377173,1729140631680,-13630.71363713,0.00014869,2]
[340377174,1729140631722,-1381.46995,0.00014869,2]
[340377175,1729140631733,-1092.24,0.00014869,2]
[340377182,1729140637677,-502.07315815,0.00014869,2]
[340377183,1729140637690,-65516.853316,0.00014869,2]
[340377184,1729140637733,-404.24619223,0.00014869,2]
[340377185,1729140637744,-1430.58680764,0.00014869,2]
[340377196,1729140639556,-4829.04030226,0.00014869,2]
[340377197,1729140641899,-337.50907081,0.00014869,2]
[340377198,1729140641911,-3290.71924148,0.00014869,2]
[340377199,1729140641923,-251.42255874,0.00014869,2]
[340377275,1729140642670,-406.60510473,0.00014869,2]
[340378122,1729140914989,150.0,0.00011,2]
[340378124,1729141119871,155.19738947,0.00027,120]
[340378126,1729141222281,150.0,0.00011,2]
[340378130,1729141528293,150.0,0.00011,2]
[340378131,1729141580362,550.0,0.0001,2]
[340378139,1729141757612,1000.0,0.00021,30]
[340378144,1729141831762,-600.0,0.00012,2]
[340378145,1729141831771,-255.61,0.00012886,2]
[340378146,1729141831781,-164.6,0.00013827,2]
[340378147,1729141831789,-450.39,0.00013827,2]
[340378148,1729141831799,-250.0,0.00013845,2]
[340378149,1729141831808,-650.0,0.00014,2]
[340378150,1729141831817,-954.22137525,0.00014,2]
[340378151,1729141831828,-45.77862475,0.00014,2]
[340378152,1729141831838,-424.81817129,0.00014046,2]
[340378153,1729141831849,-846.47,0.00014046,2]
[340378154,1729141831860,-350.2299999,0.00014046,2]
[340378155,1729141831891,-805.15423728,0.00014046,2]
[340378156,1729141831917,-324.32759153,0.00014046,2]
[340378157,1729141831926,-349.04240847,0.00014078,2]
[340378158,1729141831937,-331.70660932,0.00014078,2]
[340378159,1729141831948,-145.63098221,0.00014078,2]
[340378160,1729141831958,-200.0,0.00014085,2]
[340378161,1729141831968,-1000.0,0.0001409,2]
[340378162,1729141831976,-165.09,0.0001409,2]
[340378163,1729141831986,-2461.76102692,0.0001409,2]
[340378164,1729141832085,-1999.71839229,0.0001409,2]
[340378165,1729141834668,-2066.18752522,0.0001409,2]
[340378166,1729141834680,-457.29170079,0.0001409,2]
[340378167,1729141834692,-3442.740027,0.0001409,2]
[340378168,1729141834704,-633.14132778,0.0001409,2]
[340378169,1729141834714,-250.0,0.00014205,2]
[340378170,1729141834725,-157.8,0.00014264,2]
[340378172,1729141834734,-7221.3045127,0.00014278,2]
[340378178,1729141837962,-1355.40250323,0.00014278,2]
[340378179,1729141838087,-4040.85305081,0.00014278,2]
[340378187,1729141838209,150.0,0.00011,2]
[340378215,1729141839711,-11282.43993326,0.00014278,2]
[340378216,1729141839722,-157.8,0.000143,2]
[340378217,1729141839731,-554.64,0.00014333,2]
[340378218,1729141839742,-157.8,0.00014336,2]
[340378219,1729141839752,-250.0,0.00014357,2]
[340378220,1729141839762,-167.0,0.00014787,2]
[340378221,1729141839772,-10308.60190435,0.00014869,2]
[340378222,1729141839787,-5613.14869646,0.00014869,2]
[340378223,1729141839882,-2274.52077748,0.00014869,2]
[340378246,1729141842865,-5238.00831548,0.00014869,2]
[340378255,1729141883108,161.26,0.00010959,2]
[340378256,1729142111679,151.0,0.0001,2]
[340378257,1729142112025,151.0,0.0001,2]
[340378258,1729142112345,151.0,0.0001,2]
[340378259,1729142112671,151.0,0.0001,2]
[340378260,1729142112995,151.0,0.0001,2]
[340378261,1729142113346,207.0,0.0001,2]
[340378262,1729142121191,500.0,0.0001,2]
[340378263,1729142121539,500.0,0.0001,2]
[340378264,1729142121855,500.0,0.0001,2]
[340378265,1729142122202,500.0,0.0001,2]
[340378266,1729142123150,500.0,0.0001,2]
[340378267,1729142123489,500.0,0.0001,2]
[340378268,1729142123822,500.0,0.0001,2]
[340378269,1729142124164,650.0,0.0001,2]
[340378270,1729142144715,150.0,0.00011,2]
[340378271,1729142215417,183.07,9.977e-05,2]
[340378272,1729142237851,200.11178052,0.00010945,2]
[340378274,1729142402110,150.0,0.00010945,2]
[340378275,1729142402299,150.0,0.00010945,2]
[340378276,1729142402511,150.0,0.00010945,2]
[340378277,1729142402692,150.0,0.00010945,2]
[340378278,1729142402872,150.0,0.00010945,2]
[340378279,1729142403204,150.0,0.00010945,2]
[340378280,1729142403489,150.0,0.00010945,2]
[340378281,1729142403662,150.0,0.00010945,2]
[340378282,1729142403842,150.0,0.00010945,2]
[340378283,1729142404118,150.0,0.00010945,2]
[340378284,1729142404323,150.0,0.00010945,2]
[340378285,1729142404525,150.0,0.00010945,2]
[340378286,1729142406978,150.0,0.00010945,2]
[340378287,1729142407008,150.0,0.00010945,2]
[340378288,1729142407041,150.0,0.00010945,2]
[340378289,1729142407168,150.0,0.00010945,2]
[340378290,1729142407349,150.0,0.00010945,2]
[340378291,1729142407539,150.0,0.00010945,2]
[340378292,1729142407722,150.0,0.00010945,2]
[340378293,1729142407958,150.0,0.00010945,2]
[340378294,1729142408163,150.0,0.00010945,2]
[340378295,1729142408339,177.94286196,0.00010945,2]
[340378296,1729142421199,1299.79,0.00010237,2]
[340378297,1729142450469,235.66,0.00011,2]
[340378299,1729142698936,500.0,0.00027,60]
[340378300,1729142707951,58205.16535752,0.00011,2]
[340378301,1729142707987,181350.91227092,0.00011,2]
[340378302,1729142719442,681.21379504,9e-05,2]
[340378303,1729142729220,313.95751758,0.000101,2]
[340378304,1729142734125,230.09126353,0.0001,2]
[340378306,1729142754168,602.86000303,6.94e-05,2]
[340378307,1729142761254,161.36825544,9e-05,2]
[340378308,1729142819691,24915.08262964,0.0001088,2]
[340378309,1729142838146,205.0,9.8e-05,2]
[340378310,1729142842245,246.42625911,0.000101,2]
[340378311,1729142858701,183.07,9.345e-05,2]
[340378312,1729142869355,2550.0,0.00010945,2]
[340378313,1729142915585,212.21439226,0.0001,2]
[340378314,1729143015837,1234.8,9.507e-05,2]
[340378326,1729143032199,-838.22075028,0.00011262,2]
[340378327,1729143032209,-838.22075027,0.00011312,2]
[340378329,1729143032219,-3231.53487943,0.00011362,2]
[340378331,1729143032229,-838.22075027,0.00011362,2]
[340378333,1729143032238,-300.0,0.00011458,2]
[340378335,1729143032248,-518.76,0.00011459,2]
[340378337,1729143032257,-925.8471081,0.00011462,2]
[340378339,1729143032267,-3231.53487942,0.00011504,2]
[340378340,1729143032280,-2751.0,0.00011604,2]
[340378343,1729143032290,-158.74,0.00011612,2]
[340378345,1729143032299,-564.73,0.00011621,2]
[340378347,1729143032309,-985.54,0.00011676,2]
[340378348,1729143032318,-183.07,0.00011682,2]
[340378350,1729143032328,-2638.67,0.00011699,2]
[340378352,1729143032337,-274.49,0.00011699,2]
[340378354,1729143032346,-250.0,0.00011723,2]
[340378356,1729143032358,-1091.02251641,0.00011744,2]
[340378361,1729143032396,-468.72740377,0.00011744,2]
[340378363,1729143032407,-281.84007982,0.00011744,2]
[340378365,1729143032417,-796.3,0.00011749,2]
[340378366,1729143032426,-172.15,0.00011765,2]
[340378367,1729143032436,-239.54,0.00011769,2]
[340378368,1729143032445,-1234.8,0.00011771,2]
[340378369,1729143032456,-250.0,0.00011778,2]
[340378370,1729143032465,-441.13,0.00011781,2]
[340378371,1729143032475,-150.0,0.0001179,2]
[340378372,1729143032484,-847.96,0.00011791,2]
[340378373,1729143032494,-2144.18934799,0.00011791,2]
[340378374,1729143032506,-657.4833942,0.00011791,2]
[340378375,1729143032525,-895.21920218,0.00011791,2]
[340378376,1729143032540,-1217.12215082,0.00011791,2]
[340378377,1729143032552,-17707.42590481,0.00011791,2]
[340378378,1729143032562,-768.47,0.00011791,2]
[340378379,1729143032571,-402.44,0.00011796,2]
[340378380,1729143032580,-269.7157,0.000118,2]
[340378381,1729143032589,-283.14,0.00011875,2]
[340378382,1729143032598,-452.15,0.00011987,2]
[340378383,1729143032608,-200.0,0.00012002,2]
[340378384,1729143032617,-500.0,0.00012003,2]
[340378385,1729143032626,-684.99,0.00012041,2]
[340378386,1729143032635,-325.27,0.00012041,2]
[340378387,1729143032644,-250.0,0.00012043,2]
[340378388,1729143032654,-366.52,0.00012049,2]
[340378389,1729143032663,-2303.17,0.00012049,2]
[340378390,1729143032673,-924.0,0.00012065,2]
[340378391,1729143032683,-171.52,0.00012137,2]
[340378392,1729143032693,-243.53,0.00012153,2]
[340378393,1729143032703,-163.52,0.00012185,2]
[340378394,1729143032713,-1366.7,0.00012262,2]
[340378395,1729143032723,-350.03,0.00012283,2]
[340378396,1729143032732,-8116.0,0.00012391,2]
[340378397,1729143032741,-156.939,0.00012407,2]
[340378398,1729143032751,-259.51,0.00012409,2]
[340378399,1729143032761,-1000.0,0.00012409,2]
[340378400,1729143032770,-180.0,0.00012464,2]
[340378401,1729143032781,-152.274,0.00012539,2]
[340378402,1729143032790,-935.0,0.00012539,2]
[340378403,1729143032799,-555.0,0.00012539,2]
[340378404,1729143032810,-2037.205,0.00012539,2]
[340378405,1729143032819,-3357.0,0.00012539,2]
[340378406,1729143032829,-823.0,0.00012539,2]
[340378407,1729143032839,-10061.928,0.00012539,2]
[340378408,1729143032848,-1083.0,0.00012539,2]
[340378409,1729143032858,-220.173,0.00012539,2]
[340378410,1729143032868,-5886.0,0.00012539,2]
[340378411,1729143032877,-1320.531,0.00012539,2]
[340378412,1729143032887,-567.353,0.00012539,2]
[340378413,1729143032896,-420.0,0.00012586,2]
[340378414,1729143032911,-924.0,0.00012701,2]
[340378415,1729143032920,-163.52,0.00012794,2]
[340378416,1729143032930,-251.0,0.00012863,2]
[340378417,1729143032939,-418.14,0.00012875,2]
[340378418,1729143032949,-1000.0,0.000129,5]
[340378419,1729143032958,-200.0,0.00012951,2]
[340378420,1729143032968,-1000.0,0.00013,10]
[340378421,1729143032977,-259.51,0.00013099,2]
[340378422,1729143032987,-1000.0,0.000131,5]
[340378423,1729143032996,-1000.0,0.000132,5]
[340378424,1729143033006,-924.0,0.00013336,2]
[340378425,1729143033016,-4411.28631014,0.00013392,2]
[340378426,1729143033275,-163.52,0.00013404,2]
[340378427,1729143033285,-151.0,0.0001342,2]
[340378428,1729143033295,-151.0,0.0001342,2]
[340378429,1729143033305,-457.668102,0.0001342,2]
[340378430,1729143033315,-827.245548,0.0001342,2]
[340378431,1729143033324,-457.668102,0.0001342,2]
[340378432,1729143033334,-827.245548,0.0001342,2]
[340378433,1729143033344,-101366.0397,0.0001342,2]
[340378434,1729143033353,-251.8,0.00013492,2]
[340378435,1729143033364,-251.8,0.00013496,2]
[340378436,1729143033373,-251.8,0.00013499,2]
[340378437,1729143033383,-1000.0,0.000135,5]
[340378438,1729143033392,-251.8,0.00013503,2]
[340378439,1729143033401,-251.8,0.00013506,2]
[340378440,1729143033411,-251.8,0.0001351,2]
[340378441,1729143033420,-251.8,0.00013513,2]
[340378442,1729143033430,-251.8,0.00013517,2]
[340378443,1729143033439,-151.574015,0.0001352,2]
[340378444,1729143033450,-151.0,0.0001352,2]
[340378445,1729143033459,-151.0,0.0001352,2]
[340378446,1729143033469,-151.0,0.0001352,2]
[340378447,1729143033478,-151.35895,0.0001352,2]
[340378448,1729143033488,-151.0,0.0001352,2]
[340378449,1729143033499,-152.767747,0.0001352,2]
[340378450,1729143033509,-8200.717994,0.0001352,2]
[340378451,1729143033519,-151.0,0.0001352,2]
[340378452,1729143033529,-8200.717994,0.0001352,2]
[340378453,1729143033538,-151.0,0.0001352,2]